Cogmind - Beta 14 @@@ ROGUE MODE // 2024.08.18 @ 10:29:23 Player: Daffa0360 Result: Self-destructed Performance ------------- Evolutions (2) 1000 Regions Visited (4) 800 Robots Destroyed (31) 155 Value Destroyed (847) 847 Prototype IDs (11) 220 Alien Tech Used (0) 0 Bonus (87) 87 TOTAL SCORE: 3109 Bonus ------- Follower Combat Kills 107 Friendly Fire -20 Cogmind --------- Core Integrity 452/550 Matter 142/300 Energy 180/180 System Corruption 0% Temperature Cool (16) Movement Core (350) Ox6 Location -8/Materials Parts ------- > --- POWER (1) -------- Meta Core > --- PROPULSION (2+1) - (None) > --- UTILITY (6+1) ---- Medium Storage Unit > --- WEAPON (2+1) ----- Subdweller Machine Gun > --- INVENTORY (10) --- Light Nuclear Core Small Storage Unit Improved Melee Analysis Suite Energy Filter Makeshift Light Armor Plating Improved Trap Extractor (0/6) Recalibrator Welding Torch Peak State ------------ > --- POWER ------------ Meta Core > --- PROPULSION ------- Subdweller Monowheel > --- UTILITY ---------- Medium Storage Unit Advanced Weight Redist. System Recoil Stabilizer > --- WEAPON ----------- Barrage Gun Heavy Battle Rifle > --- INVENTORY -------- Light Nuclear Core Small Storage Unit Improved Melee Analysis Suite Energy Filter Makeshift Light Armor Plating Improved Trap Extractor Recalibrator Subdweller Machine Gun Rocket Launcher Welding Torch [Rating: 31] Favorites ----------- Power Meta Core Engine Light Ion Engine Power Core Meta Core Propulsion Aluminum Leg Leg Aluminum Leg Wheel Subdweller Monowheel Utility Medium Storage Unit Device Recoil Stabilizer Storage Medium Storage Unit Weapon Flak Cannon Energy Gun Small Laser Ballistic Gun Heavy Battle Rifle Ballistic Cannon Flak Cannon Launcher Improved Grenade Launcher Special Weapon Welding Torch Build | -11 -10 -10 -10 -8 ------- Run | Yrd Mat Min Sub Mat Slots Evolved 4 | . . . . 4 Power . | . . . . . Propulsion . | . . . . . Utility 4 | . . . . 4 Weapon . | . . . . . Parts Attached 39 | 7 1 8 18 5 Power 3 | 1 . . 2 . Engine 1 | 1 . . . . Core 2 | . . . 2 . Reactor . | . . . . . Propulsion 8 | 3 . 2 3 . Treads . | . . . . . Leg 2 | . . 2 . . Wheel 6 | 3 . . 3 . Hover . | . . . . . Flight . | . . . . . Utility 6 | 1 . 2 2 1 Device 4 | . . 1 2 1 Storage 2 | 1 . 1 . . Processor . | . . . . . Hackware . | . . . . . Protection . | . . . . . Artifact . | . . . . . Weapon 22 | 2 1 4 11 4 Energy Gun 6 | 2 1 1 2 . Energy Cannon . | . . . . . Ballistic Gun 5 | . . . 2 3 Ballistic Cannon 3 | . . 2 1 . Launcher 7 | . . 1 5 1 Special Weapon 1 | . . . 1 . Impact Weapon . | . . . . . Slashing Weapon . | . . . . . Piercing Weapon . | . . . . . Special Melee Weapon . | . . . . . Unidentified Prototypes . | . . . . . Parts Lost 16 | . 1 1 8 6 Power . | . . . . . Propulsion 6 | . . 1 4 1 Utility 3 | . . . 1 2 Weapon 7 | . 1 . 3 3 Highest Loss Streak 6 | . 1 1 3 6 To Critical Strikes 1 | . . . . 1 Average Slot Usage (%) 78 | . 83 95 73 47 Engine 4 | . 14 14 . . Core 7 | . . . 10 7 Leg 13 | . . 16 13 . Wheel 7 | . 28 9 4 6 Device 10 | . . 12 10 12 Storage 11 | . 14 14 11 7 Energy Gun 7 | . 26 13 3 . Ballistic Gun 3 | . . . 5 8 Ballistic Cannon 7 | . . 11 8 . Launcher 3 | . . 1 4 5 Peak Build Rating 31 | 6 7 13 29 31 Average Rating 18 | 5 6 11 23 28 On Entrance 10 | . 6 7 12 26 Naked Turns . | . . . . . Heaviest Build 29 | 12 12 20 29 24 Greatest Support 35 | 26 26 35 30 29 Greatest Overweight (x) 8 | . . . 8 1 Average Overweight (x) . | . . . 1 . Largest Inventory Capacity 10 | 8 8 10 10 10 Average Capacity 9 | 7 8 9 10 10 Most Carried 10 | 5 8 10 10 10 Average Carried 8 | 3 5 8 8 9 Final Capacity 10 | 8 8 10 10 10 Final Carried 9 | 5 7 8 9 8 Class Distribution -------------------- 100% | Mutant Dominant Class ---------------- Mutant | -10/Materials Mutant | -10/Mines Mutant | -10/Subcaves Mutant | -8/Materials Resources | -11 -10 -10 -10 -8 ----------- Run | Yrd Mat Min Sub Mat Matter Collected 978 | 270 10 172 512 14 Remotely . | . . . . . Salvage Created 868 | 169 176 2 458 63 Parts 57 | 15 6 . 25 11 Haulers Intercepted . | . . . . . Recyclers Shooed . | . . . . . Parts Field Recycled . | . . . . . Retrieved Matter . | . . . . . Parts Self-Destructed 14 | . . . 14 . Prevented . | . . . . . Kills | -11 -10 -10 -10 -8 ------- Run | Yrd Mat Min Sub Mat Combat Hostiles Destroyed 25 | . 4 1 15 5 Guns 10 | . 4 . 6 . Cannons 7 | . . . 7 . AOE 8 | . . 1 2 5 Classes Destroyed 8 | 2 1 1 3 1 Tunneler 5 | 5 . . . . Recycler 1 | 1 . . . . Operator 1 | . . . . 1 Swarmer 6 | . . . 2 4 Grunt 9 | . 4 . 4 1 Sentry 1 | . . . 1 . Subdweller 8 | . . . 8 . Assembled 1 | . . 1 . . Best Kill Streak 6 | 5 1 1 4 6 Combat Bots Only 5 | . 1 1 4 5 Max Kills in Single Turn 2 | 1 1 1 1 2 Gunslinging . | . . . . . Exploded 2 | . . 1 1 2 Melee . | . . . . . Uniques/NPCs Destroyed . | . . . . . Combat | -11 -10 -10 -10 -8 -------- Run | Yrd Mat Min Sub Mat Hostile Shots Fired 152 | . 20 2 83 47 Missed 43 | . 3 1 28 11 Damage Taken 1758 | . 189 86 1037 446 Core 318 | . 42 . 178 98 Absorbed by Shields . | . . . . . Core Remaining (%) 56 | 100 . . 12 . Volleys Fired 101 | 12 16 8 55 10 Largest 2 | 2 2 2 2 2 Hottest 90 | 90 90 84 84 61 Shots Fired 173 | 24 27 9 97 16 Gun 117 | 24 27 1 53 12 Cannon 31 | . . 1 30 . Launcher 24 | . . 7 13 4 Special 1 | . . . 1 . Kinetic 73 | . . 1 60 12 Thermal 56 | 12 19 1 24 . Explosive 24 | . . 7 13 4 Electromagnetic 20 | 12 8 . . . Robot Hit Streak 15 | 5 7 8 15 13 Robot Miss Streak 7 | 1 1 . 7 3 Penetration Max . | . . . . . Secondary Targets . | . . . . . Shots Hit Robots 109 | 16 21 1 64 7 Core Hits 70 | 7 7 2 42 12 Critical Kills . | . . . . . Critical Parts Destroyed 1 | . . . 1 . Critical Strikes 4 | 2 1 . 1 . Burn 2 | 2 . . . . Destroy 1 | . . . 1 . Corrupt 1 | . 1 . . . Melee Attacks . | . . . . . Impact . | . . . . . Slashing . | . . . . . Piercing . | . . . . . Sneak Attacks . | . . . . . Combat Hostiles . | . . . . . Follow-up Attacks . | . . . . . Damage Inflicted 2449 | 216 279 106 1235 613 Guns 1155 | 216 279 . 554 106 Cannons 483 | . . . 483 . Explosions 811 | . . 106 198 507 Melee . | . . . . . Ramming . | . . . . . Kinetic 1023 | . . . 917 106 Thermal 415 | 112 183 . 120 . Explosive 811 | . . 106 198 507 Electromagnetic 200 | 104 96 . . . Impact . | . . . . . Slashing . | . . . . . Piercing . | . . . . . Highest Corruption . | . . . . . Average Corruption . | . . . . . Corruption Purged . | . . . . . Corruption Blocked . | . . . . . Overload Shots . | . . . . . Overflow Damage 33 | . . 27 3 3 Projectiles . | . . . . . Explosions 33 | . . 27 3 3 Melee . | . . . . . Knockbacks 15 | . . . 15 . Impact . | . . . . . Kinetic 15 | . . . 15 . Secondary . | . . . . . Self-Inflicted Damage 240 | . . 75 116 49 Shots 7 | . . 2 4 1 Rammed . | . . . . . Targets Rammed . | . . . . . Kicked . | . . . . . Crushed . | . . . . . Highest Temperature 180 | 120 180 24 12 26 Average Temperature 47 | 41 66 11 8 10 Received Heat Transfer 435 | . 102 6 183 144 Siege Activations . | . . . . . Robots Corrupted . | . . . . . Combat Hostiles . | . . . . . Parts Fried 1 | . 1 . . . Impact Corruptions . | . . . . . Robots Melted . | . . . . . Combat Hostiles . | . . . . . Parts Melted 2 | . 2 . . . Heat Transferred 1275 | 481 519 . 275 . Parts Sabotaged . | . . . . . Parts Stolen . | . . . . . Parts Stripped . | . . . . . Power Chain Reactions . | . . . . . Alert | -11 -10 -10 -10 -8 ------- Run | Yrd Mat Min Sub Mat Peak Influence 185 | 30 154 162 . 185 Initial 60 | . 19 60 . 18 Average 50 | 15 75 50 . 58 Maximum Alert Level . | . . . . . Low Security (%) 100 | 100 100 100 . 100 Level 1 . | . . . . . Level 2 . | . . . . . Level 3 . | . . . . . Level 4 . | . . . . . Level 5 . | . . . . . High Security . | . . . . . Max Security . | . . . . . Squads Dispatched 3 | . 2 . . 1 Investigation 2 | . 2 . . . Extermination . | . . . . . Reinforcement 1 | . . . . 1 Assault . | . . . . . Garrison . | . . . . . Intercept . | . . . . . Searches Triggered . | . . . . . Construction Impeded . | . . . . . Haulers Reinforced . | . . . . . Active Scanning Responses . | . . . . . Cargo Convoy Interrupts . | . . . . . Stealth | -11 -10 -10 -10 -8 --------- Run | Yrd Mat Min Sub Mat Distress Signals 4 | . 3 . . 1 Communications Jammed . | . . . . . Distress Signals . | . . . . . Times Spotted 44 | . 9 2 20 13 Peak Tracking Total 12 | . 3 2 6 12 Tactical Retreats 3 | . 1 . 1 1 Traps | -11 -10 -10 -10 -8 ------- Run | Yrd Mat Min Sub Mat Traps Triggered . | . . . . . Indirectly . | . . . . . Trap Hack Attempts . | . . . . . Triggered . | . . . . . Disarmed . | . . . . . Reprogrammed . | . . . . . Reused . | . . . . . Traps Extracted . | . . . . . Installed . | . . . . . Triggered . | . . . . . Machines | -11 -10 -10 -10 -8 ---------- Run | Yrd Mat Min Sub Mat Machines Disabled 5 | . . . 3 2 Max in Single Turn 3 | . . . 3 1 Machines Repaired . | . . . . . Machines Dismantled . | . . . . . Machines Sabotaged . | . . . . . Overloaded Fab Kills . | . . . . . Hacking | -11 -10 -10 -10 -8 --------- Run | Yrd Mat Min Sub Mat Machines Accessed 6 | . 3 1 1 1 Terminals 4 | . 3 . . 1 Fabricators . | . . . . . Repair Stations . | . . . . . Recycling Units . | . . . . . Scanalyzers . | . . . . . Garrison Access . | . . . . . Total Hacks 20 | . 9 1 9 1 Successful 15 | . 5 1 9 . Failed 5 | . 4 . . 1 Catastrophic . | . . . . . Database Lockouts . | . . . . . Manual 5 | . 5 . . . Terminals 10 | . 9 . . 1 Fabricators . | . . . . . Repair Stations . | . . . . . Recycling Units . | . . . . . Scanalyzers . | . . . . . Garrison Access . | . . . . . Terminal Hacks 11 | . 1 1 9 . Record 8 | . . . 8 . Open Door 1 | . . 1 . . Alert Level 1 | . 1 . . . Derelict Proto ID Bank 1 | . . . 1 . Fabricator Hacks . | . . . . . Repair Station Hacks . | . . . . . Recycling Unit Hacks . | . . . . . Scanalyzer . | . . . . . Garrison Access Hacks . | . . . . . Unauthorized Hacks 4 | . 4 . . . Terminals 4 | . 4 . . . Assimilate 2 | . 2 . . . Botnet 2 | . 2 . . . Fabricators . | . . . . . Repair Stations . | . . . . . Recycling Units . | . . . . . Scanalyzers . | . . . . . Garrison Access . | . . . . . Data Cores Recovered . | . . . . . Used . | . . . . . Hacking Detections 3 | . 2 . . 1 Full Trace Events . | . . . . . Feedback Events . | . . . . . Feedback Blocked . | . . . . . Robot Schematics Acquired . | . . . . . Robots Built . | . . . . . Authchips . | . . . . . Time . | . . . . . Total Robot Build Rating . | . . . . . Part Schematics Acquired . | . . . . . Parts Built . | . . . . . Authchips . | . . . . . Time . | . . . . . Total Part Build Rating . | . . . . . Parts Repaired . | . . . . . Time . | . . . . . Parts Recycled . | . . . . . Recycled Matter . | . . . . . Retrieved Matter . | . . . . . Retrieved Components . | . . . . . Parts Scanalyzed . | . . . . . Part Schematics Acquired . | . . . . . Parts Damaged . | . . . . . Bothacking | -11 -10 -10 -10 -8 ------------ Run | Yrd Mat Min Sub Mat Used RIF Installer . | . . . . . Robots Hacked . | . . . . . Non-combat . | . . . . . Combat . | . . . . . Robot Hacks Applied . | . . . . . Relay Couplers Released . | . . . . . Fabnet Peak Effective % . | . . . . . Robots Rewired . | . . . . . Allies Hacked . | . . . . . Hacks Repelled . | . . . . . Allies | -11 -10 -10 -10 -8 -------- Run | Yrd Mat Min Sub Mat Total Allies 4 | . 1 3 . . Largest Group 3 | . 1 3 2 . Highest-Rated Group 40 | . 10 40 32 . Highest-Rated Ally 16 | . 10 16 16 . Total Orders . | . . . . . Ally Attacks 19 | . . 16 3 . Total Damage 203 | . . 153 50 . Kills 6 | . . 5 1 . Allies Corrupted . | . . . . . Allies Melted . | . . . . . Intel | -11 -10 -10 -10 -8 ------- Run | Yrd Mat Min Sub Mat Robot Analysis Total . | . . . . . Derelict Logs Recovered 3 | . . 2 1 . Drone Launches . | . . . . . Drone Recoveries . | . . . . . Exploration | -11 -10 -10 -10 -8 ------------- Run | Yrd Mat Min Sub Mat Turns Passed 3445 | 187 253 708 2190 107 Spaces Moved 1863 | 157 188 361 1095 62 Core 31 | 13 . . 18 . Treads . | . . . . . Legs 625 | . . 95 530 . Wheels 1207 | 144 188 266 547 62 Hover . | . . . . . Flight . | . . . . . Fastest Speed 50 | 50 90 80 95 110 Average Speed 131 | 83 90 96 158 111 Slowest Speed 450 | 90 90 120 450 120 Overloaded Moves . | . . . . . Propulsion Burnouts . | . . . . . Robots Hopped . | . . . . . Cave-ins Triggered . | . . . . . Exploration Rate (%) 34 | 4 35 70 52 9 Regions Visited 4 Branch Regions 2 Pre-discovered Areas 1 | . . 1 . . Known Exits Taken . | . . . . . Unknown Exits Taken 4 | 1 1 1 1 . Scrap Searched 4 | . . 1 3 . Spaces Dug . | . . . . . Terrain Destroyed 191 | . . 77 96 18 Melee . | . . . . . Projectile . | . . . . . AOE 191 | . . 77 96 18 Terrain Rammed . | . . . . . Walls Destroyed . | . . . . . Machines Disabled . | . . . . . Actions | -11 -10 -10 -10 -8 --------- Run | Yrd Mat Min Sub Mat Total 2682 | 188 244 714 1453 83 Wait 642 | . 37 328 275 2 Move 1859 | 156 187 360 1094 62 Hop . | . . . . . Pick Up 31 | 12 3 4 9 3 Fast Attach 2 | . . 2 . . Attach 23 | 6 1 5 8 3 Detach 4 | . . 3 1 . Swap 14 | 1 . 1 10 2 Drop 6 | 1 . 3 1 1 Fire 101 | 12 16 8 55 10 Melee . | . . . . . Ram . | . . . . . Kick . | . . . . . Crush . | . . . . . Escape Stasis . | . . . . . Rewire . | . . . . . Trap . | . . . . . Miscellaneous . | . . . . . Route ------- -11/Scrapyard -10/Materials -10/Mines (discovered 2 exits: [*Mat] / *Sub) -10/Subcaves (discovered 2 exits: *Mat / [*Rec]) -8/Materials History --------- Turn | Location | Event 4 | -11/Scrapyard | Discovered new exit (range 16) 188 | -11/Scrapyard | Entered Materials 266 | -10/Materials | Discovered new exit (range 14) 303 | -10/Materials | Build established: Mutant 441 | -10/Materials | Entered Mines 442 | -10/Mines | Assisted by bots powering up and referring to "LRC-V3" 488 | -10/Mines | Met a Derelict who couldn't figure out how to use a Trap Extractor 597 | -10/Mines | Discovered new exit (range 4) 624 | -10/Mines | Learned Materials stockpile data 649 | -10/Mines | Excavation squad dispatched 649 | -10/Mines | A large section of the Mines collapsed 740 | -10/Mines | Received a Rocket Launcher from a helpful Derelict 1140 | -10/Mines | Discovered new exit (range 3) 1149 | -10/Mines | Entered Subcaves 1149 | -10/Subcaves | Accompanied by 2 allies 1160 | -10/Subcaves | Learned Materials emergency access door positions 1172 | -10/Subcaves | Discovered new exit (range 12) 1586 | -10/Subcaves | Visited 4L-MR0's lab 1736 | -10/Subcaves | Found Meta Core 1739 | -10/Subcaves | Attached Meta Core, gained temporary slots: Propulsion, Utility, Weapon 2103 | -10/Subcaves | A swath of the cavern ceiling suddenly collapsed 2195 | -10/Subcaves | Shifting Twisted Machinery released Piercing Trap 2198 | -10/Subcaves | Discovered new exit (range 12) 2200 | -10/Subcaves | Shifting Twisted Machinery released Sub. Monowheel 2280 | -10/Subcaves | Lost 3 parts (1n1u1w) 2828 | -10/Subcaves | Core integrity fell below 50% 2893 | -10/Subcaves | Shifting Twisted Machinery released Sub. Optics 2956 | -10/Subcaves | Core integrity fell below 20% 2987 | -10/Subcaves | Shifting Twisted Machinery released Sub. Machine Gun 3064 | -10/Subcaves | Shifting Twisted Machinery released Sub. Power Source 3065 | -10/Subcaves | Shifting Twisted Machinery released Mak. Light Armor Plating 3339 | -10/Subcaves | Entered Materials 3339 | -8/Materials | Evolved 4 slots: Utility x4 3446 | -8/Materials | Self-destructed Last Messages --------------- 03430_ S-10 Pest destroyed. 03430_ Sub. Monowheel destroyed. 03430_ Critical hit (Destroy). 03430_ Rocket Launcher destroyed. 03432_ K-01 Serf collects debris. 03433_ R-06 Scavenger collects Lgt. Assault Rifle. 03433_ Destroyed Lgt. Assault Rifle. 03436_ K-01 Serf collects debris. 03436_ Hvy. Battle Rifle destroyed. 03438_ Barrage Gun destroyed. 03438_ K-01 Serf collects debris. 03440_ R-06 Scavenger collects Flight Unit. 03442_ Recoil Stabilizer destroyed. 03443_ R-06 Scavenger collects Lgt. Assault Rifle. 03443_ K-01 Serf collects debris. 03444_ Destroyed Flight Unit. 03444_ Adv. Weight Redist. System destroyed. 03446_ U-05 Engineer lays Concrete. Map ----- +----------------------------------------------------+ | ?????????????# ?????????????????????????????? | | ?????????????# ?????????????????????????????? | | ?????????????# #????????????????????????????? | | ?????????????# #????????????????????????????? | | ?????????????# #????????????????????????????? | | ?????????????# #????????????????????????????? | | ?????????????# #????????????????????????????? | | ?????????????# #????????????????????????????? | | ?????????????# #????????????????????????????? | | ?????????????# #????????????????????????????? | | ?????????????# #????????????????????????????? | | ?????????????# #????????????????????????????? | | ?????????????# ####?????????????????????????? | | ?????????##### ##########+###########????? | | ?????????#!! "" #????? | | ?????????#!* T #????? | | ?????????#!! #????? | | ?????????#! ##########+####### #????? | | ?????????#! ## ##??# * #????????? | | ?????????#!! ## #???# #????????? | | ?????????###### #???# #????????? | | ??????????????# #???# #????????? | | ??????????????# ##### #????????? | | ??????????????# ## # #????????? | | ??????????##### u## ##### #????? | | ??????????# @ s #????? | | ??????????# t r "????? | | ??????????# ! T????? | | ??????????######### # [ "????? | | ??????????????????###?## gg "* #????? | | ???????????????????????## gg ?????? | | ????????????????????????T * = #????? | | ????????????????????????# ?????? | | ???????????????????????? ?????? | | ???????????????????????? ! k ??????? | | ???????????????????????? ??????? | | ???????????????????????## #########??????? | | ????????????????????????#######??????????????? | | ?????????????????????????????????????????????? | | ?????????????????????????????????????????????? | | ?????????????????????????????????????????????? | | ?????????????????????????????????????????????? | | ?????????????????????????????????????????????? | | ?????????????????????????????????????????????? | | ?????????????????????????????????????????????? | | ?????????????????????????????????????????????? | | ?????????????????????????????????????????????? | | ?????????????????????????????????????????????? | | ?????????????????????????????????????????????? | | ?????????????????????????????????????????????? | +----------------------------------------------------+ Best States ------------- Heat Dissipation 31 Energy Generation 17 Energy Capacity 180 Matter Stores 300 Matter Capacity 300 Sight Range 16 Terrain Scan Range 16 Terrain Scan Density 10 Additional Mass Support 9 Evasion (%) 55 Recoil Reduction 4 Item Schematics ----------------- None Robot Schematics ------------------ None Fabricated ------------ Nothing Alien Tech Used ----------------- None Achievements -------------- None Challenges ------------ None Game ------ Seed WarlordRocketSpoofer Manual? 0 Play Time 00:20:53 Cumulative 44.5 hours Start 2024.08.17 @ 19:20:57 End 2024.08.18 @ 10:29:23 Sessions 3 Manual Loads 0 Difficulty Rogue Special Mode None Game No. 73 Rogue 69 Adventurer 4 Explorer 0 Win Type - Total 0 Types 0/0/0/0/0/0/0/0/0 Lore% 12 Gallery% 36 Achievement% 28 Wizard Run 0 Options --------- Layout 1 ASCII 0 Keyboard 0 Movement Mouse Keybinds 0 Fullscreen 2 Font 24/Smallcaps Map View 50x35 Zoom Use 0% Tactical HUD 1 Map Filters NONE Filters NONE Steam 1 RUN: 4c1e2e96-9812-4142-b4cc-6052015d3779